bitfinex/quotes_BTCUSD_20241226
["timestamp","ask_amount","ask_price","bid_price","bid_amount"]
[1735230968222,0.09187403,95988.0,95987.0,0.003]
[1735230968425,0.07874349,95990.0,95987.0,0.003]
[1735230968628,0.01313054,95988.0,95987.0,0.004]
[1735230968882,0.00015498,95999.0,95987.0,0.03691234]
[1735230969112,0.00015498,95999.0,95997.0,0.208338]
[1735230969322,0.00015498,95999.0,95997.0,0.31232432]
[1735230969527,0.00015498,95999.0,95997.0,0.208338]
[1735230969909,0.00015498,95999.0,95998.0,0.27698632]
[1735230970113,0.0001712,96015.0,96014.0,0.208302]
[1735230970340,0.0001712,96015.0,96014.0,0.2499628]
[1735230970693,0.0001712,96015.0,96014.0,0.208302]
[1735230971120,0.0001712,96015.0,96014.0,0.33528832]
[1735230971763,0.0001712,96015.0,96014.0,0.33728832]
[1735230972170,0.0001712,96015.0,96014.0,0.33528832]
[1735230972546,0.0001712,96015.0,96014.0,0.33728832]
[1735230972760,0.0001712,96015.0,96014.0,0.34128832]
[1735230972988,0.0001712,96015.0,96014.0,0.33728832]
[1735230973286,0.0001712,96015.0,96014.0,0.34128832]
[1735230973484,0.0001712,96015.0,96014.0,0.33728832]
[1735230973706,0.0001712,96015.0,96014.0,0.33528832]
[1735230973830,0.0001712,96015.0,96014.0,0.15198763]
[1735230974030,0.0001712,96015.0,96014.0,0.14998763]
[1735230974643,0.0001712,96015.0,96014.0,0.35628963]
[1735230975042,0.0001712,96015.0,96014.0,0.35828963]
[1735230975498,0.0001712,96015.0,96014.0,0.36028963]
[1735230975756,0.0001712,96015.0,96014.0,0.40378661]
[1735230976088,0.0001712,96015.0,96014.0,0.06849829]
[1735230976891,0.0001712,96015.0,96014.0,0.06649829]
[1735230977111,0.0001712,96015.0,96014.0,0.06849829]
[1735230977327,0.0001712,96015.0,96014.0,0.06449829]
[1735230977606,0.0001712,96015.0,96014.0,0.06249829]
[1735230977800,0.0001712,96015.0,96014.0,0.02100131]
[1735230978036,0.0001712,96015.0,96014.0,0.02200131]
[1735230978437,0.0001712,96015.0,96014.0,0.02100131]
[1735230978617,0.0001712,96015.0,96014.0,0.02200131]
[1735230978832,0.0001712,96015.0,96006.0,0.208318]
[1735230979027,0.01110904,96015.0,96014.0,0.002]
[1735230979456,0.01110904,96015.0,96007.0,0.208318]
[1735230979658,0.01110904,96015.0,96014.0,0.002]
[1735230979865,0.0001712,96015.0,96006.0,0.09346228]
[1735230980064,0.01118286,96015.0,96006.0,0.09346228]
[1735230980305,0.0001712,96015.0,96014.0,0.001]
[1735230980574,0.01118286,96015.0,96014.0,0.001]
[1735230980796,0.01118286,96015.0,96013.0,0.02122405]
[1735230981420,0.01118286,96015.0,96014.0,0.0229537]
[1735230981620,0.01118286,96015.0,96013.0,0.22952705]
[1735230981938,0.0001712,96015.0,96013.0,0.22952705]
[1735230983064,0.0001712,96015.0,96013.0,0.23352705]
[1735230983475,0.0001712,96015.0,96013.0,0.02922405]
[1735230983681,0.0001712,96015.0,96013.0,0.008]
[1735230983877,0.0001712,96015.0,96011.0,0.09346228]
[1735230984103,0.01107766,96014.0,96011.0,0.09346228]
[1735230984236,0.0767712,96015.0,96011.0,0.09346228]
[1735230984447,0.01107766,96013.0,96011.0,0.09346228]
[1735230984648,0.0767712,96015.0,96011.0,0.09346228]
[1735230984841,0.01107766,96012.0,96011.0,0.09346228]
[1735230985064,0.0001712,96015.0,96010.0,0.208311]
[1735230985241,0.0001712,96015.0,96011.0,0.001]
[1735230986215,0.0001712,96015.0,96011.0,0.003]
[1735230986560,0.0001712,96015.0,96005.0,0.22874282]
[1735230986760,0.0001712,96015.0,96011.0,0.001]
[1735230987270,0.0001712,96015.0,96005.0,0.22874282]
[1735230987489,0.0031712,96015.0,96011.0,8.56e-05]
[1735230987696,0.0031712,96015.0,96012.0,0.208306]
[1735230988096,0.0021712,96015.0,96012.0,0.416613]
[1735230988296,0.0031712,96015.0,96012.0,0.416613]
[1735230988914,0.0011712,96015.0,96012.0,0.416614]
[1735230989076,0.0021712,96015.0,96012.0,0.416614]
[1735230989277,0.0021712,96015.0,96012.0,0.52060032]
[1735230989647,0.0011712,96015.0,96014.0,0.481302]
[1735230989840,0.0011712,96015.0,96014.0,0.58528832]
[1735230990279,0.0011712,96015.0,96014.0,0.48528832]
[1735230990426,0.0001712,96015.0,96014.0,0.48528832]
[1735230990993,0.0001712,96015.0,96014.0,0.48728832]
[1735230991197,0.0001712,96015.0,96014.0,0.48528832]
[1735230991393,0.0001712,96015.0,96014.0,0.58828832]
[1735230991513,0.0001712,96015.0,96014.0,0.49128832]
[1735230992182,0.0001712,96015.0,96014.0,0.83635907]
[1735230992548,0.0001712,96015.0,96014.0,0.83335907]
[1735230992950,0.0001712,96015.0,96014.0,0.83835907]
[1735230993155,0.0001712,96015.0,96014.0,0.49028832]
[1735230993564,0.0001712,96015.0,96014.0,0.48528832]
[1735230993761,0.0001712,96015.0,96014.0,0.33428832]
[1735230993982,0.0001712,96015.0,96014.0,0.32501784]
[1735230994201,0.0001712,96015.0,96014.0,0.52931984]
[1735230994411,0.0001712,96015.0,96014.0,0.52731984]
[1735230994615,0.0001712,96015.0,96014.0,0.63730616]
[1735230995221,0.0001712,96015.0,96014.0,0.53331984]
[1735230995943,0.0001712,96015.0,96014.0,0.52731984]
[1735230996092,0.0001712,96015.0,96014.0,0.53231984]
[1735230996314,0.0001712,96015.0,96014.0,0.67450003]
[1735230996496,0.0001712,96015.0,96014.0,0.66950003]
[1735230996695,0.0011712,96015.0,96014.0,0.67350003]
[1735230997101,0.0011712,96015.0,96014.0,0.67650003]
[1735230997853,0.0011712,96015.0,96014.0,0.53631984]
[1735230999019,0.0011712,96015.0,96014.0,0.34831984]
[1735231000220,0.0011712,96015.0,96014.0,0.45230616]
[1735231000376,0.0011712,96015.0,96014.0,0.55230616]
[1735231000818,0.0011712,96015.0,96014.0,1.27236267]
[1735231000983,0.0011712,96015.0,96014.0,1.26936267]
[1735231001388,0.0011712,96015.0,96014.0,1.27336267]
[1735231001974,0.0001712,96015.0,96014.0,1.61229165]
[1735231002373,0.0011712,96015.0,96014.0,1.62129165]
[1735231002581,0.001,96015.0,96014.0,1.77129165]
[1735231002827,2e-07,96015.0,96014.0,1.8037719]
[1735231003606,0.0818,96062.0,96035.0,0.5463]
[1735231003802,0.01163792,96061.0,96051.0,0.12521225]
[1735231003992,0.01163792,96061.0,96053.0,0.208218]
[1735231004637,0.09038141,96061.0,96051.0,0.12521225]
[1735231006060,0.208203,96060.0,96051.0,0.12521225]
[1735231006260,0.28695649,96056.0,96047.0,0.02112081]
[1735231006696,0.01111997,96055.0,96047.0,0.02112081]
[1735231006870,0.08126144,96061.0,96048.0,0.208229]
[1735231007085,0.08226144,96061.0,96048.0,0.208229]
[1735231007413,0.01111997,96060.0,96057.0,0.208207]
[1735231007847,0.00051795,96061.0,96057.0,0.416416]
[1735231008379,0.00351795,96061.0,96057.0,0.416416]
[1735231008777,0.00351795,96061.0,96057.0,0.208209]
[1735231009024,0.00351795,96061.0,96057.0,0.416418]
[1735231010245,0.0818,96060.0,96048.0,0.04294295]
[1735231010590,0.0818,96060.0,96047.0,0.02112081]
[1735231010591,0.07874349,96056.0,96047.0,0.02112081]
[1735231010793,0.07874349,96056.0,96050.0,0.12521225]
[1735231010995,0.01126479,96055.0,96050.0,0.12521225]
[1735231013731,0.01326479,96055.0,96050.0,0.12521225]
[1735231013980,0.01326479,96055.0,96043.0,0.208239]
[1735231014156,0.01126479,96055.0,96045.0,0.12521225]
[1735231014509,0.01326479,96055.0,96045.0,0.12521225]
[1735231014917,0.01126479,96055.0,96045.0,0.12521225]
[1735231015119,0.01326479,96055.0,96045.0,0.12521225]
[1735231015662,0.01726479,96055.0,96050.0,0.02099162]
[1735231016230,0.02126479,96055.0,96050.0,0.02099162]
[1735231016414,0.01126479,96055.0,96050.0,0.02099162]
[1735231016617,0.01526479,96055.0,96050.0,0.02099162]
[1735231016818,0.01726479,96055.0,96050.0,0.02099162]
[1735231017248,0.01526479,96055.0,96050.0,0.02099162]
[1735231018044,0.01726479,96055.0,96050.0,0.02099162]
[1735231019957,0.01726479,96055.0,96043.0,0.24330135]
[1735231020655,0.01726479,96055.0,96043.0,0.45154035]
[1735231020855,0.01526479,96055.0,96043.0,0.45154035]
[1735231021195,0.01726479,96055.0,96047.0,0.02080883]
[1735231021696,0.01326479,96055.0,96047.0,0.22903983]
[1735231021900,0.01726479,96055.0,96047.0,0.22903983]
[1735231022452,0.02126479,96055.0,96053.0,0.208217]
[1735231022624,0.01,96055.0,96054.0,0.10398632]
[1735231023028,0.008,96055.0,96054.0,0.10398632]
[1735231023230,0.00068915,96061.0,96055.0,0.416428]
[1735231023443,0.07874349,96087.0,96060.0,0.231203]
[1735231023723,0.00032648,96065.0,96063.0,0.15]
[1735231023922,0.00032648,96065.0,96064.0,0.25398632]
[1735231024142,0.00032648,96065.0,96064.0,0.46218032]
[1735231025594,0.00032648,96065.0,96064.0,0.46818032]
[1735231026568,0.00032648,96065.0,96064.0,0.47018032]
[1735231026974,0.00032648,96065.0,96064.0,0.48885359]
[1735231027197,0.00032648,96065.0,96064.0,0.49085359]
[1735231027425,0.00032648,96065.0,96064.0,0.53421347]
[1735231027831,0.00032648,96065.0,96064.0,0.52621347]
[1735231028023,0.00032648,96065.0,96064.0,0.53421347]
[1735231028388,0.00032648,96065.0,96064.0,0.52821347]
[1735231028610,0.00032648,96065.0,96064.0,0.53421347]
[1735231029454,0.00032648,96065.0,96064.0,0.66119979]
[1735231029685,0.00032648,96065.0,96064.0,0.7824563]
[1735231029895,0.0457,96103.0,96073.0,0.1]
[1735231030096,0.078,96107.0,96090.0,0.12521225]
[1735231030309,0.00015517,96099.0,96094.0,0.208129]
[1735231030503,0.00015517,96099.0,96091.0,0.208136]
[1735231030868,0.00944792,96098.0,96091.0,0.208136]
[1735231031083,0.00944792,96098.0,96088.0,0.208141]
[1735231031297,0.00944792,96098.0,96080.0,0.33337025]
[1735231031298,0.07874349,96096.0,96080.0,0.33337025]
[1735231031971,0.00015517,96099.0,96090.0,0.02038336]
[1735231032175,0.00015517,96099.0,96092.0,0.208133]
[1735231032524,0.00969321,96098.0,96092.0,0.208133]
[1735231032953,0.00215517,96099.0,96092.0,0.208133]
[1735231033150,0.001,96098.0,96092.0,0.208133]
[1735231033482,0.00215517,96099.0,96092.0,0.208133]
[1735231033684,0.00215517,96099.0,96090.0,0.02038336]
[1735231033816,0.07874349,96096.0,96080.0,0.12521225]
[1735231034012,0.07874349,96096.0,96080.0,0.16783278]
[1735231034216,0.00970373,96095.0,96080.0,0.16783278]
[1735231034415,0.07874349,96096.0,96080.0,0.16783278]
[1735231034620,0.208127,96095.0,96080.0,0.16783278]
[1735231034855,0.00970373,96094.0,96081.0,0.208157]
[1735231035147,0.07974349,96096.0,96082.0,0.416309]
[1735231035325,0.07974349,96096.0,96086.0,0.33335825]
[1735231035531,0.001,96096.0,96087.0,0.208144]
[1735231035822,0.00215517,96099.0,96088.0,0.15813725]
[1735231036025,0.00015517,96099.0,96096.0,0.208124]
[1735231036424,0.0001712,96098.0,96096.0,0.416248]
[1735231036651,0.0001712,96098.0,96097.0,0.10398632]
[1735231036986,0.0001712,96098.0,96097.0,0.42682355]
[1735231038031,0.0001712,96098.0,96097.0,0.35598632]
[1735231038867,0.0001712,96098.0,96097.0,0.27197264]
[1735231039074,0.0001712,96098.0,96097.0,0.20598632]
[1735231039270,0.0001712,96098.0,96097.0,0.20898632]
[1735231039650,0.0001712,96098.0,96097.0,0.21098632]
[1735231040126,0.0001712,96098.0,96097.0,0.20898632]
[1735231040330,0.0001712,96098.0,96097.0,0.20998632]
[1735231040833,0.0001712,96098.0,96097.0,0.20398632]
[1735231040971,0.0001712,96098.0,96097.0,0.35398632]
[1735231041171,0.0001712,96098.0,96097.0,0.35798632]
[1735231041598,0.0001712,96098.0,96097.0,0.46497264]
[1735231042031,0.0001712,96098.0,96097.0,0.36098632]
[1735231042520,0.0001712,96098.0,96097.0,0.35998632]
[1735231042726,0.0001712,96098.0,96097.0,0.36098632]
[1735231044000,0.00015517,96099.0,96098.0,0.33112]
[1735231044240,0.00015517,96099.0,96098.0,0.62293354]
[1735231044739,0.0001712,96112.0,96111.0,0.1]
[1735231044896,0.0001712,96112.0,96111.0,0.43507832]
[1735231045878,0.0001712,96112.0,96111.0,0.308092]
[1735231046078,0.0001712,96112.0,96111.0,0.40138194]
[1735231046293,0.0001712,96112.0,96111.0,0.44295103]
[1735231046457,0.0001712,96112.0,96111.0,0.47483934]
[1735231046678,0.0001712,96112.0,96111.0,0.57379841]
[1735231046833,0.0001712,96112.0,96111.0,0.48050847]
[1735231047040,0.0001712,96112.0,96111.0,0.47750847]
[1735231047866,0.0001712,96112.0,96111.0,0.47367347]
[1735231048043,0.0001712,96112.0,96111.0,0.48167347]
[1735231048206,0.0001712,96112.0,96111.0,0.47367347]
[1735231048415,0.0001712,96112.0,96111.0,0.60565979]
[1735231048627,2e-07,96128.0,96126.0,0.1]
[1735231048853,0.00015534,96128.0,96127.0,0.12698632]
[1735231049071,0.00015534,96128.0,96127.0,0.33504432]
[1735231049699,0.00015534,96128.0,96127.0,0.43504432]
[1735231050350,0.00015534,96128.0,96127.0,0.45619524]
[1735231050494,0.00015534,96128.0,96127.0,0.54376595]
[1735231050963,0.00015534,96128.0,96127.0,0.77876595]
[1735231051138,0.0002,96169.0,96142.0,0.023]
[1735231051139,0.0804,96166.0,96142.0,0.023]
[1735231051312,0.0804,96166.0,96151.0,0.208006]
[1735231051512,0.0804,96166.0,96151.0,0.33499232]
[1735231051861,0.0002,96169.0,96151.0,0.33499232]
[1735231052720,0.0002,96169.0,96151.0,0.33799232]
[1735231053145,0.07874349,96166.0,96151.0,0.214006]
[1735231053347,0.0002,96169.0,96151.0,0.214006]
[1735231053551,0.0002,96169.0,96151.0,0.23455198]
[1735231053927,0.0002,96169.0,96151.0,0.02354598]
[1735231054135,0.0002,96169.0,96151.0,0.29480968]
[1735231054315,0.0002,96169.0,96151.0,0.421796]
[1735231054532,0.0002,96169.0,96151.0,0.521796]
[1735231054900,0.0002,96169.0,96151.0,0.81945251]
[1735231055126,0.0002,96169.0,96168.0,0.207969]
[1735231055303,0.0002,96169.0,96168.0,0.37765669]
[1735231055304,0.00071734,96169.0,96168.0,0.37765669]
[1735231055552,0.00071734,96169.0,96168.0,1.2236342]
[1735231055735,0.00071734,96169.0,96168.0,1.33067732]
[1735231057142,0.0001712,96191.0,96175.0,0.1]
[1735231057346,0.0003263,96191.0,96190.0,0.207921]
[1735231057524,0.0003263,96191.0,96190.0,0.33490732]
[1735231057739,0.0003263,96191.0,96190.0,0.35569942]
[1735231058348,0.0003263,96191.0,96190.0,0.39110761]
[1735231058594,0.0003263,96191.0,96190.0,0.42093406]
[1735231059147,0.0003263,96191.0,96190.0,0.39110761]
[1735231059271,0.0003263,96191.0,96190.0,0.40010761]
[1735231059476,0.0003263,96191.0,96190.0,0.37931551]
[1735231059683,0.0003263,96191.0,96190.0,0.04440819]
[1735231059903,0.0833263,96191.0,96190.0,0.04440819]
[1735231060264,0.09209912,96191.0,96190.0,0.04440819]
[1735231060468,0.09152039,96191.0,96190.0,0.03740819]
[1735231060761,0.09152039,96191.0,96190.0,0.03540819]
[1735231060883,0.09152039,96191.0,96190.0,0.04440819]
[1735231061092,0.09152039,96191.0,96190.0,0.009]
[1735231061293,0.09152039,96191.0,96190.0,0.007]
[1735231061510,0.17026388,96191.0,96190.0,0.007]
[1735231061742,0.17034938,96191.0,96190.0,0.007]
[1735231062498,0.207921,96190.0,96176.0,0.22902208]
[1735231062819,0.415843,96190.0,96176.0,0.02107208]
[1735231062968,0.207928,96187.0,96176.0,0.02107208]
[1735231063325,0.07874349,96185.0,96176.0,0.02107208]
[1735231063550,0.207936,96183.0,96176.0,0.02107208]
[1735231063757,0.083,96184.0,96176.0,0.02107208]
[1735231063934,0.083,96184.0,96173.0,0.15702807]
[1735231064106,0.21670882,96183.0,96170.0,0.16030537]
[1735231064286,0.08751631,96183.0,96172.0,0.20796]
[1735231065524,0.08751631,96183.0,96170.0,0.35358465]
[1735231065721,0.08851631,96183.0,96170.0,0.35358465]
[1735231066162,0.09051631,96183.0,96170.0,0.35358465]
[1735231066490,0.07874349,96173.0,96170.0,0.0204084]
[1735231066697,0.07874349,96171.0,96160.0,0.24326134]
[1735231066898,0.00853053,96170.0,96160.0,0.16048859]
[1735231067154,0.0477,96174.0,96160.0,0.16048859]
[1735231067365,0.0477,96174.0,96167.0,0.207971]
[1735231067502,0.00852149,96173.0,96167.0,0.207971]
[1735231067923,0.07874349,96171.0,96160.0,0.03927634]
[1735231068133,0.07874349,96167.0,96160.0,0.03527634]
[1735231068363,0.07874349,96167.0,96157.0,0.02048338]
[1735231068364,0.07874349,96161.0,96157.0,0.02048338]
[1735231068779,0.00851209,96160.0,96157.0,0.02048338]
[1735231068989,0.207993,96157.0,96155.0,0.02075205]
[1735231069365,0.07874349,96142.0,96140.0,0.03548472]
[1735231069771,0.00848765,96141.0,96140.0,0.00051734]
[1735231070166,0.4005446,96141.0,96140.0,0.00051734]
[1735231070400,0.39924446,96141.0,96140.0,0.00051734]
[1735231071737,0.39924446,96141.0,96140.0,0.00351734]
[1735231072146,0.40124446,96141.0,96140.0,0.00051734]
[1735231072390,0.40324446,96141.0,96140.0,0.00051734]
[1735231073104,0.46914071,96141.0,96140.0,0.00051734]
[1735231073694,0.40324446,96141.0,96140.0,0.00068834]
[1735231073891,0.20803,96140.0,96125.0,0.00423024]
[1735231074220,0.20803,96140.0,96126.0,0.20806]
[1735231074221,0.07874349,96137.0,96126.0,0.20806]
[1735231074576,0.07874349,96132.0,96126.0,0.20806]
[1735231074786,0.07874349,96132.0,96125.0,0.00438534]
[1735231075171,0.00836283,96131.0,96125.0,0.00438534]
[1735231075367,0.00836283,96131.0,96126.0,0.20806]
[1735231075573,0.00836283,96131.0,96127.0,0.05457226]
[1735231075907,0.00836283,96130.0,96127.0,0.05457226]
[1735231076114,0.08074349,96137.0,96127.0,0.05457226]
[1735231076115,0.07874349,96132.0,96127.0,0.05457226]
[1735231076581,0.07874349,96132.0,96125.0,0.00438534]
[1735231076894,0.00836283,96131.0,96125.0,0.00438534]
[1735231077531,0.00836283,96131.0,96126.0,0.20806]
[1735231077737,0.00936283,96131.0,96126.0,0.20806]
[1735231078159,0.001,96131.0,96125.0,0.00538534]
[1735231078402,0.07874349,96132.0,96125.0,0.00538534]
[1735231078606,0.00836283,96130.0,96125.0,0.00538534]
[1735231078944,0.00836283,96129.0,96126.0,0.001]
[1735231079367,0.07874349,96132.0,96126.0,0.001]
[1735231079599,0.00836283,96128.0,96126.0,0.001]
[1735231079794,0.07874349,96131.0,96126.0,0.001]
[1735231080030,0.00836283,96127.0,96118.0,0.14884521]
[1735231080201,0.07974349,96131.0,96118.0,0.00015514]
[1735231080349,0.00836283,96126.0,96118.0,0.20823114]
[1735231080560,0.07874349,96122.0,96118.0,0.00015514]
[1735231080759,0.07874349,96119.0,96118.0,0.00015514]
[1735231080966,0.18272981,96119.0,96118.0,0.00015514]
[1735231081196,0.26043038,96119.0,96118.0,0.00015514]
[1735231081392,0.2673979,96119.0,96118.0,0.00015514]
[1735231081568,0.37138422,96119.0,96118.0,0.00015514]
[1735231081967,0.2683979,96119.0,96118.0,0.00015514]
[1735231082392,0.2673979,96119.0,96118.0,0.00015514]
[1735231082732,0.2693979,96119.0,96118.0,0.00015514]
[1735231083030,0.30471001,96119.0,96118.0,0.00015514]
[1735231083383,0.45471001,96119.0,96118.0,0.00015514]
[1735231083579,0.56069633,96119.0,96118.0,0.00015514]
[1735231083781,0.15,96118.0,96085.0,0.00353839]
[1735231083985,0.15,96116.0,96086.0,0.208146]
[1735231084186,0.07874349,96092.0,96086.0,0.208146]
[1735231084991,0.07874349,96096.0,96091.0,0.208134]
[1735231085189,0.07874349,96096.0,96085.0,0.00369356]
[1735231085437,0.07874349,96088.0,96085.0,0.00369356]
[1735231085994,0.07874349,96086.0,96085.0,0.00015517]
[1735231086228,0.00824948,96087.0,96086.0,8.55e-05]
[1735231086229,0.08699297,96087.0,96086.0,8.55e-05]
[1735231086404,0.07874349,96089.0,96086.0,8.55e-05]
[1735231086603,0.07874349,96093.0,96086.0,0.2082315]
[1735231086809,0.07874349,96093.0,96086.0,8.55e-05]
[1735231087123,0.07874349,96093.0,96086.0,0.2082305]
[1735231087485,0.07874349,96093.0,96086.0,0.2092305]
[1735231087912,0.07874349,96093.0,96086.0,8.55e-05]
[1735231088113,0.07874349,96088.0,96086.0,8.55e-05]
[1735231088315,0.08004438,96087.0,96086.0,8.55e-05]
[1735231088522,0.07874349,96087.0,96086.0,8.55e-05]
[1735231088734,0.14466509,96087.0,96086.0,8.55e-05]
[1735231088909,0.07874349,96069.0,96046.0,0.1]
[1735231089174,0.00803389,96068.0,96053.0,0.00015528]
[1735231089390,0.00803389,96068.0,96062.0,0.02042044]
[1735231089604,0.07874349,96069.0,96062.0,0.02042044]
[1735231089777,0.07874349,96063.0,96062.0,0.02042044]
[1735231089982,0.07874349,96054.0,96053.0,0.00015528]
[1735231090134,0.18272981,96054.0,96053.0,0.00015528]
[1735231090346,0.1920043,96054.0,96053.0,0.00015528]
[1735231090567,0.34070287,96054.0,96053.0,0.00015528]
[1735231090766,0.41756204,96054.0,96053.0,0.00015528]
[1735231090978,0.51096044,96054.0,96053.0,0.00015528]
[1735231091313,0.17860266,96051.0,96050.0,8.56e-05]
[1735231091458,0.46596555,96051.0,96050.0,8.56e-05]
[1735231091686,0.46466385,96051.0,96050.0,8.56e-05]
[1735231091859,0.44055922,96051.0,96050.0,8.56e-05]
[1735231092056,0.51455102,96051.0,96050.0,8.56e-05]
[1735231093200,0.41455102,96051.0,96050.0,8.56e-05]
[1735231093400,0.51455102,96051.0,96050.0,8.56e-05]
[1735231093601,0.41655102,96051.0,96050.0,0.0010856]
[1735231093825,0.41655102,96051.0,96043.0,8.56e-05]
[1735231093826,0.51655102,96051.0,96020.0,0.03568243]
[1735231094006,0.51655102,96051.0,95764.0,60.0]
[1735231094007,0.208263,96032.0,95976.0,0.0144955]
[1735231094206,0.07860266,96024.0,95993.0,0.754647]
[1735231094410,0.07860266,96023.0,96017.0,0.208296]
[1735231094646,0.07860266,96026.0,96017.0,0.208296]
[1735231095071,0.07860266,96023.0,96017.0,0.208296]
[1735231095591,0.00775067,96022.0,96017.0,0.20881395]
[1735231095719,0.00775067,96022.0,96017.0,0.41710995]
[1735231095921,0.001,96023.0,96022.0,0.208285]
[1735231096533,0.001,96023.0,96022.0,0.285385]
[1735231096910,0.002,96026.0,96023.0,0.208283]
[1735231097128,0.002,96026.0,96023.0,0.31226932]
[1735231097305,0.002,96026.0,96025.0,0.531079]
[1735231097505,0.07860266,96045.0,96033.0,0.6463]
[1735231097764,0.07860266,96053.0,96042.0,0.208241]
[1735231098193,0.00764279,96052.0,96044.0,0.02118527]
[1735231098337,0.07860266,96053.0,96044.0,0.02118527]
[1735231098541,0.07860266,96053.0,96045.0,0.208235]
[1735231098744,0.08060266,96053.0,96045.0,0.03623499]
[1735231099075,0.00764279,96052.0,96044.0,0.02118527]
[1735231099383,0.00764279,96052.0,96045.0,0.208235]
[1735231099558,0.00764279,96052.0,96047.0,0.208231]
[1735231099765,0.08060266,96053.0,96045.0,0.208235]
[1735231100187,0.08160266,96053.0,96045.0,0.208235]
[1735231100389,0.07960266,96053.0,96045.0,0.208235]
[1735231100601,0.001,96052.0,96045.0,0.208235]
[1735231100966,0.08075743,96053.0,96045.0,0.208235]
[1735231101173,0.07875743,96053.0,96045.0,0.208235]
[1735231101511,0.08075743,96053.0,96045.0,0.208235]
[1735231101656,0.08075743,96053.0,96045.0,0.2504507]
[1735231101855,0.07875743,96053.0,96045.0,0.2504507]
[1735231102257,0.08075743,96053.0,96045.0,0.2504507]
[1735231104033,0.08175743,96053.0,96045.0,0.0422157]
[1735231104235,0.08175743,96053.0,96044.0,0.02118527]
[1735231104442,0.00768037,96052.0,96044.0,0.02118527]
[1735231105062,0.07975743,96053.0,96044.0,0.02118527]
[1735231105309,0.08075743,96053.0,96044.0,0.02118527]
[1735231107038,0.07875743,96053.0,96044.0,0.02118527]
[1735231107300,0.07975743,96053.0,96044.0,0.02118527]
[1735231107505,0.00968037,96052.0,96046.0,0.208233]
[1735231107915,0.00768037,96052.0,96046.0,0.208233]
[1735231108307,0.00768037,96052.0,96044.0,0.02118527]
[1735231108512,0.03734475,96052.0,96044.0,0.02118527]
[1735231108708,0.00768037,96052.0,96044.0,0.02118527]
[1735231109058,0.00868037,96052.0,96044.0,0.02118527]
[1735231109621,0.00968037,96052.0,96045.0,0.208235]
[1735231110000,0.002,96052.0,96045.0,0.208235]
[1735231110353,0.001,96052.0,96045.0,0.208235]
[1735231110759,0.002,96052.0,96045.0,0.208235]
[1735231111165,0.001,96052.0,96045.0,0.208235]
[1735231111367,0.003,96052.0,96044.0,0.02118527]
[1735231111571,0.004,96052.0,96044.0,0.02118527]
[1735231111750,0.00774854,96051.0,96044.0,0.02118527]
[1735231112429,0.0031712,96052.0,96044.0,0.02118527]
[1735231112604,0.00774854,96050.0,96044.0,0.02118527]
[1735231112806,0.0041712,96052.0,96044.0,0.02118527]
[1735231113012,0.00774854,96049.0,96044.0,0.02118527]
[1735231113233,0.0041712,96052.0,96044.0,0.02118527]
[1735231113513,0.0021712,96052.0,96045.0,0.208235]
[1735231113692,0.002,96051.0,96045.0,0.208235]
[1735231113890,0.07860266,96045.0,96044.0,0.02118527]
[1735231114095,0.07860266,96045.0,96006.0,0.09328994]
[1735231114096,0.07860266,96035.0,96006.0,0.09328994]
[1735231114296,0.01159441,96051.0,96029.0,0.04287189]
[1735231114297,0.07296678,96030.0,96029.0,0.04287189]
[1735231114476,0.07426851,96030.0,96029.0,0.04287189]
[1735231114683,0.07296678,96022.0,96012.0,0.11432579]
[1735231115083,0.00771844,96021.0,96012.0,0.11432579]
[1735231116013,0.00771844,96021.0,96017.0,0.04712408]
[1735231116216,0.00771844,96021.0,96017.0,0.00560345]
[1735231116733,0.00771844,96021.0,96018.0,0.208293]
[1735231116938,0.07296678,96029.0,96018.0,0.416587]
[1735231117256,0.07296678,96029.0,96020.0,0.208289]
[1735231117484,0.00771844,96028.0,96020.0,0.208289]
[1735231118164,0.07296678,96029.0,96025.0,0.208278]
[1735231118362,0.07296678,96029.0,96023.0,0.208281]
[1735231118566,0.07396678,96029.0,96023.0,0.208281]
[1735231118971,0.001,96029.0,96023.0,0.02061408]
[1735231119172,0.001,96029.0,96027.0,0.208273]
[1735231119375,0.00759598,96028.0,96025.0,0.208279]
[1735231119582,0.001,96029.0,96019.0,0.15]
[1735231119797,0.07296678,96032.0,96019.0,0.15]
[1735231120071,0.001,96029.0,96019.0,0.20829]
[1735231120283,0.001,96029.0,96024.0,0.20828]
[1735231120433,0.07296678,96032.0,96024.0,0.20828]
[1735231120634,0.07296678,96032.0,96020.0,0.33350125]
[1735231120817,0.002,96029.0,96020.0,0.33350125]
[1735231121252,0.07296678,96026.0,96018.0,0.208293]
[1735231121707,0.00760232,96025.0,96018.0,0.208293]
[1735231122666,0.00760232,96025.0,96017.0,0.20889945]
[1735231122988,0.07296678,96026.0,96017.0,0.20889945]
[1735231123252,0.07296678,96020.0,96017.0,0.00060345]
[1735231123421,0.07296678,96020.0,96018.0,8.56e-05]
[1735231123837,0.00760232,96019.0,96012.0,0.01274928]
[1735231124035,0.00760232,96019.0,96006.0,0.208318]
[1735231124210,0.0805691,96019.0,96018.0,0.001]
[1735231124389,0.07296678,96013.0,96011.0,0.0423704]
[1735231124593,0.07296678,96012.0,96011.0,8.56e-05]
[1735231124821,0.08054365,96012.0,96011.0,8.56e-05]
[1735231125883,0.26743143,96012.0,96011.0,8.56e-05]
[1735231126097,0.26612997,96012.0,96011.0,8.56e-05]
[1735231126297,0.16214365,96012.0,96011.0,8.56e-05]
[1735231126613,0.26612997,96012.0,96011.0,8.56e-05]
[1735231126819,0.26712997,96012.0,96011.0,8.56e-05]
[1735231127445,0.33550267,96012.0,96011.0,8.56e-05]
[1735231127681,0.38180267,96012.0,96011.0,8.56e-05]
[1735231128608,0.38080267,96012.0,96011.0,8.56e-05]
[1735231128927,0.38380267,96012.0,95991.0,0.0002]
[1735231129149,0.10528852,96011.0,95991.0,0.0002]
[1735231129348,0.208345,95995.0,95991.0,0.0002]
[1735231129583,0.0013022,95994.0,95991.0,0.0002]
[1735231129991,0.00750169,95993.0,95991.0,0.0002]
[1735231130869,0.00750169,95993.0,95991.0,0.04324321]
[1735231131293,0.01150169,95993.0,95991.0,0.04324321]
[1735231131505,0.01150169,95993.0,95991.0,0.25159521]
[1735231131708,0.002,95993.0,95991.0,0.25159521]
[1735231131913,0.005,95993.0,95991.0,0.25159521]
[1735231132929,0.005,95993.0,95991.0,0.04324321]
[1735231132930,0.003,95993.0,95991.0,0.04324321]
[1735231133232,0.005,95993.0,95991.0,0.04324321]
[1735231133600,0.07296678,95992.0,95991.0,0.04324321]
[1735231133763,0.08035786,95992.0,95991.0,0.0082432]
[1735231133965,0.08035786,95992.0,95990.0,8.56e-05]
[1735231134589,0.07296678,95991.0,95990.0,8.56e-05]
[1735231135191,0.08035786,95991.0,95990.0,8.56e-05]